[Event "35th European Club Cup 2019"]
[Site "Ulcinj"]
[Date "2019.11.12"]
[Round "3.15"]
[White "Verstraeten, Rein"]
[Black "Ezat, Mohamed"]
[Result "1/2-1/2"]
[ECO "E70"]
[WhiteElo "2379"]
[BlackElo "2452"]
[Annotator "ChessBase"]
[PlyCount "91"]
[EventDate "2019.11.10"]
[EventType "team-tourn"]
[EventCountry "MNE"]
[SourceTitle "playchess.com"]
[Source "ChessBase"]
[SourceQuality "1"]
[WhiteTeam "HWP Sas van Gent"]
[BlackTeam "Reykjavik CC"]
[TimeControl "40/5400+30:1800+30"]

1. d4 {[%emt 0:00:00]} Nf6 {[%emt 0:00:01]} 2. c4 {[%emt 0:00:00]} g6 {[%emt 0:00:15]} 3. Nc3 {[%emt 0:00:00]} Bg7 {[%emt 0:00:04]} 4. e4 {[%emt 0:00:11]} d6 {[%emt 0:00:08]} 5. Bd3 {[%emt 0:00:11]} O-O {[%emt 0:02:00]} 6. Nge2 {[%emt 0:00:11]} Nc6 {[%emt 0:05:46]} 7. O-O {[%emt 0:00:20]} Nd7 {[%emt 0:04:31]} 8. Be3 {[%emt 0:00:43]} e5 {[%emt 0:04:16]} 9. d5 {[%emt 0:00:09]} Ne7 {[%emt 0:03:24]} 10. f3 {[%emt 0:02:25]} f5 {[%emt 0:00:15]} 11. exf5 {[%emt 0:00:30]} Nxf5 {[%emt 0:00:30]} 12. Bd2 {[%emt 0:00:30]} Nc5 {[%emt 0:05:12]} 13. Bc2 {[%emt 0:05:09]} Nd4 {[%emt 0:18:44]} 14. b4 {[%emt 0:03:54]} Nxc2 {[%emt 0:01:18]} 15. Qxc2 {[%emt 0:00:10]} Bf5 {[%emt 0:00:25]} 16. Ne4 {[%emt 0:13:08]} Nxe4 {[%emt 0:02:38]} 17. fxe4 {[%emt 0:00:10]} Bg4 {[%emt 0:00:07]} 18. Rxf8+ {[%emt 0:17:09]} Qxf8 {[%emt 0:00:30]} 19. Rf1 {[%emt 0:00:30]} Qe7 {[%emt 0:00:30]} 20. Nc3 {[%emt 0:00:03]} Rf8 {[%emt 0:11:08]} 21. Qc1 {[%emt 0:05:27]} Qh4 {[%emt 0:10:23]} 22. Rxf8+ {[%emt 0:01:49]} Bxf8 {[%emt 0:00:22]} 23. Bg5 {[%emt 0:02:05]} Qh5 {[%emt 0:00:03]} 24. Nb5 {[%emt 0:11:07]} Be2 {[%emt 0:05:59]} 25. Nxc7 {[%emt 0:09:03]} Qg4 {[%emt 0:00:07]} 26. Ne8 {[%emt 0:07:10]} Qc8 {[%emt 0:02:41]} 27. Nf6+ {[%emt 0:02:03]} Kf7 {[%emt 0:09:23]} 28. Nxh7 {[%emt 0:03:28]} Qxc4 {[%emt 0:00:58]} 29. Kf2 {[%emt 0:03:05]} Qxc1 {[%emt 0:03:25]} 30. Bxc1 {[%emt 0:00:02]} Bc4 {[%emt 0:00:13]} 31. a3 {[%emt 0:00:14]} Be7 {[%emt 0:01:39]} 32. Bg5 {[%emt 0:06:12]} Bf8 {[%emt 0:00:07]} 33. h4 {[%emt 0:01:06]} Bd3 {[%emt 0:01:06]} 34. Kf3 {[%emt 0:00:49]} Bc2 {[%emt 0:00:54]} 35. g3 {[%emt 0:01:43]} Ba4 {[%emt 0:05:08]} 36. Ke3 {[%emt 0:03:05]} Bg7 {[%emt 0:02:48]} 37. Bd8 {[%emt 0:02:02]} Bh6+ {[%emt 0:00:20]} 38. Bg5 {[%emt 0:00:47]} Bg7 {[%emt 0:00:03]} 39. Kd2 {[%emt 0:01:39]} Kg8 {[%emt 0:00:24]} 40. Nf6+ {[%emt 0:00:00]} Bxf6 {[%emt 0:00:00]} 41. Bxf6 {[%emt 0:00:14]} Kf7 {[%emt 0:01:04]} 42. Bg5 {[%emt 0:01:43]} Bd7 {[%emt 0:00:34]} 43. Be3 {[%emt 0:00:11]} a6 {[%emt 0:00:19]} 44. Bb6 {[%emt 0:00:07]} Bg4 {[%emt 0:00:19]} 45. Ke3 {[%emt 0:01:53]} Ke7 {[%emt 0:00:08]} 46. Kd3 {[%emt 0:00:04]} 1/2-1/2

[Event "35th European Club Cup 2019"]
[Site "Ulcinj"]
[Date "2019.11.12"]
[Round "3.16"]
[White "Petursson, Margeir"]
[Black "Maenhout, Thibaut"]
[Result "1-0"]
[ECO "A20"]
[WhiteElo "2464"]
[BlackElo "2372"]
[Annotator "ChessBase"]
[PlyCount "33"]
[EventDate "2019.11.10"]
[EventType "team-tourn"]
[EventCountry "MNE"]
[SourceTitle "playchess.com"]
[Source "ChessBase"]
[SourceQuality "1"]
[WhiteTeam "Reykjavik CC"]
[BlackTeam "HWP Sas van Gent"]
[TimeControl "40/5400+30:1800+30"]

1. c4 e5 2. g3 d6 3. Bg2 g6 {[%emt 0:00:35]} 4. Nc3 {[%emt 0:03:13]} Bg7 {[%emt 0:00:30]} 5. e3 {[%emt 0:00:30]} f5 {[%emt 0:00:30]} 6. Nge2 {[%emt 0:00:30]} Nf6 {[%emt 0:00:30]} 7. b3 {[%emt 0:00:30]} O-O {[%emt 0:00:30]} 8. d3 {[%emt 0:00:30]} c6 {[%emt 0:00:30]} 9. Ba3 {[%emt 0:00:30]} Na6 {[%emt 0:00:30]} 10. Rc1 {[%emt 0:00:30]} Nc7 {[%emt 0:00:30]} 11. Qd2 {[%emt 0:00:30]} Rf7 {[%emt 0:00:30]} 12. O-O {[%emt 0:00:30]} Be6 {[%emt 0:00:30]} 13. f4 {[%emt 0:00:30]} Rd7 {[%emt 0:00:30]} 14. Rcd1 {[%emt 0:00:30]} Bf7 {[%emt 0:00:30]} 15. Bxd6 {[%emt 0:00:30]} Rxd6 {[%emt 0:00:30]} 16. fxe5 {[%emt 0:00:30]} Rd7 {[%emt 0:00:30]} 17. exf6 {[%emt 0:00:30]} 1-0

[Event "35th European Club Cup 2019"]
[Site "Ulcinj"]
[Date "2019.11.12"]
[Round "3.17"]
[White "De Schampheleire, Glen"]
[Black "Johannesson, Ingvar Thor"]
[Result "1-0"]
[ECO "A04"]
[WhiteElo "2359"]
[BlackElo "2352"]
[Annotator "NA"]
[PlyCount "78"]
[EventDate "2019.11.10"]
[EventType "team-tourn"]
[EventCountry "MNE"]
[SourceTitle "playchess.com"]
[Source "ChessBase"]
[SourceQuality "1"]
[WhiteTeam "HWP Sas van Gent"]
[BlackTeam "Reykjavik CC"]
[TimeControl "40/5400+30:1800+30"]

1. Nf3 c5 {[%emt 0:00:00]} 2. g3 {[%emt 0:00:07]} Nc6 {[%emt 0:01:37]} 3. d4 {[%emt 0:03:42]} cxd4 {[%emt 0:03:00]} 4. Nxd4 {[%emt 0:00:07]} Qb6 {[%emt 0:03:34]} 5. Nb3 {[%emt 0:01:19]} Nf6 {[%emt 0:00:45]} 6. Bg2 {[%emt 0:00:12]} e6 {[%emt 0:06:13]} 7. O-O {[%emt 0:08:45]} d6 {[%emt 0:07:57]} 8. a4 {[%emt 0:04:15]} Be7 {[%emt 0:29:44]} 9. e4 {[%emt 0:00:30]} O-O {[%emt 0:00:30]} 10. Nc3 {[%emt 0:05:29]} Ne5 {[%emt 0:06:40]} 11. Qe2 {[%emt 0:17:17]} a6 {[%emt 0:02:29]} 12. a5 {[%emt 0:13:33]} Qc7 {[%emt 0:00:07]} 13. f4 Nc4 {[%emt 0:00:22]} 14. Ra4 {[%emt 0:00:22]} b5 {[%emt 0:02:29]} 15. axb6 {[%emt 0:00:12]} Nxb6 {[%emt 0:00:34]} 16. Ra2 {[%emt 0:00:30]} d5 {[%emt 0:02:40]} 17. e5 {[%emt 0:06:21]} Nfd7 {[%emt 0:00:14]} 18. Be3 {[%emt 0:00:14]} Nc4 {[%emt 0:04:46]} 19. Bxd5 {[%emt 0:06:47]} Nxe3 {[%emt 0:01:18]} 20. Bxa8 {[%emt 0:00:07]} Nxf1 {[%emt 0:00:15]} 21. Kxf1 {[%emt 0:00:08]} Nb6 {[%emt 0:01:15]} 22. Be4 {[%emt 0:07:44]} Nc4 {[%emt 0:00:38]} 23. Nd1 {[%emt 0:00:37]} Rd8 24. Bd3 {[%emt 0:02:08]} Qc6 {[%emt 0:11:44]} 25. Qg2 {[%emt 0:01:12]} Qb6 {[%emt 0:00:53]} 26. Qe4 {[%emt 0:02:50]} Rxd3 {[%emt 0:02:31]} 27. Qxd3 {[%emt 0:00:16]} a5 {[%emt 0:01:20]} 28. Kg2 {[%emt 0:05:06]} Bb7+ {[%emt 0:00:45]} 29. Kh3 {[%emt 0:01:25]} Qc6 {[%emt 0:00:24]} 30. Qe2 {[%emt 0:00:40]} a4 {[%emt 0:05:44]} 31. Nd4 {[%emt 0:00:30]} Qh1 {[%emt 0:02:02]} 32. Rxa4 {[%emt 0:00:55]} Nd2 33. Ne3 {[%emt 0:03:53]} Ne4 {[%emt 0:03:15]} 34. Ra7 {[%emt 0:00:24]} g5 {[%emt 0:00:44]} 35. Rxb7 {[%emt 0:01:09]} Nxg3 {[%emt 0:00:30]} 36. Rb8+ {[%emt 0:00:38]} Kg7 {[%emt 0:00:01]} 37. Kxg3 {[%emt 0:00:48]} h5 {[%emt 0:00:27]} 38. Nef5+ {[%emt 0:00:21]} exf5 {[%emt 0:00:07]} 39. Nxf5+ {[%emt 0:00:05]} Kh7 {[%emt 0:00:06]} 1-0

[Event "35th European Club Cup 2019"]
[Site "Ulcinj"]
[Date "2019.11.12"]
[Round "3.17"]
[White "Van Wissen, Michiel"]
[Black "De Graaf, Dick"]
[Result "1-0"]
[ECO "B09"]
[WhiteElo "2289"]
[BlackElo "2106"]
[Annotator "NA"]
[PlyCount "64"]
[EventDate "2019.11.10"]
[EventType "team-tourn"]
[EventCountry "MNE"]
[SourceTitle "playchess.com"]
[Source "ChessBase"]
[SourceQuality "1"]
[WhiteTeam "LSG IntelliMagic"]
[BlackTeam "En Passant"]
[TimeControl "40/5400+30:1800+30"]

1. e4 d6 2. d4 Nf6 3. Nc3 {[%emt 0:00:00]} g6 {[%emt 0:00:00]} 4. f4 Bg7 {[%emt 0:00:00]} 5. Nf3 {[%emt 0:00:21]} O-O {[%emt 0:00:00]} 6. Bd3 {[%emt 0:00:13]} Nc6 {[%emt 0:00:10]} 7. O-O {[%emt 0:01:12]} e5 {[%emt 0:03:59]} 8. d5 {[%emt 0:01:50]} Nd4 {[%emt 0:02:37]} 9. f5 {[%emt 0:01:10]} c6 {[%emt 0:19:27]} 10. Bg5 {[%emt 0:00:30]} gxf5 {[%emt 0:49:30]} 11. exf5 {[%emt 0:53:18]} Nxf5 {[%emt 0:00:34]} 12. Bxf5 {[%emt 0:00:17]} Bxf5 {[%emt 0:03:38]} 13. Kh1 Qd7 {[%emt 0:02:55]} 14. dxc6 {[%emt 0:23:19]} bxc6 15. Nxe5 dxe5 {[%emt 0:05:15]} 16. Qxd7 {[%emt 0:02:26]} Nxd7 {[%emt 0:00:46]} 17. Rxf5 {[%emt 0:00:08]} Rab8 {[%emt 0:05:01]} 18. Rd1 {[%emt 0:03:36]} h6 19. Be7 {[%emt 0:01:10]} Rxb2 {[%emt 0:03:04]} 20. Rxd7 {[%emt 0:00:38]} Rxc2 {[%emt 0:00:48]} 21. Bxf8 {[%emt 0:02:15]} Rxc3 {[%emt 0:00:02]} 22. Rdxf7 {[%emt 0:01:23]} Rc1+ {[%emt 0:00:43]} 23. Rf1 {[%emt 0:00:04]} Rxf1+ {[%emt 0:00:02]} 24. Rxf1 {[%emt 0:00:12]} Bxf8 {[%emt 0:00:01]} 25. Rf6 {[%emt 0:01:10]} c5 {[%emt 0:00:44]} 26. g3 {[%emt 0:01:38]} Kg7 {[%emt 0:00:15]} 27. Re6 {[%emt 0:00:35]} c4 {[%emt 0:00:22]} 28. Rc6 {[%emt 0:00:22]} Ba3 {[%emt 0:02:19]} 29. Rxc4 {[%emt 0:00:34]} Kg6 {[%emt 0:00:09]} 30. Kg2 {[%emt 0:00:11]} Kf5 {[%emt 0:00:03]} 31. Kf3 {[%emt 0:00:12]} Bb2 {[%emt 0:00:22]} 32. g4+ {[%emt 0:01:51]} Kg5 {[%emt 0:00:50]} 1-0

[Event "35th European Club Cup 2019"]
[Site "Ulcinj"]
[Date "2019.11.12"]
[Round "3.18"]
[White "Smith, Axel"]
[Black "Brunello, Sabino"]
[Result "0-1"]
[ECO "C26"]
[WhiteElo "2465"]
[BlackElo "2549"]
[Annotator "ChessBase"]
[PlyCount "114"]
[EventDate "2019.11.10"]
[EventType "team-tourn"]
[EventCountry "MNE"]
[SourceTitle "playchess.com"]
[Source "ChessBase"]
[SourceQuality "1"]
[WhiteTeam "Koge SK"]
[BlackTeam "Padova"]
[TimeControl "40/5400+30:1800+30"]

1. e4 {[%emt 0:00:00]} e5 {[%emt 0:02:51]} 2. Nc3 {[%emt 0:00:00]} Nf6 {[%emt 0:03:00]} 3. g3 {[%emt 0:00:00]} g6 {[%emt 0:11:05]} 4. Bg2 {[%emt 0:00:22]} Bg7 {[%emt 0:00:07]} 5. Nge2 {[%emt 0:00:40]} c5 {[%emt 0:07:08]} 6. O-O {[%emt 0:04:40]} d6 {[%emt 0:01:35]} 7. d3 {[%emt 0:01:38]} Nc6 {[%emt 0:00:20]} 8. f4 {[%emt 0:09:38]} exf4 {[%emt 0:02:58]} 9. Bxf4 {[%emt 0:02:48]} Ng4 {[%emt 0:03:20]} 10. Qd2 {[%emt 0:06:07]} h6 {[%emt 0:01:46]} 11. Qc1 {[%emt 0:08:28]} Be6 {[%emt 0:12:49]} 12. Bd2 {[%emt 0:13:31]} c4 {[%emt 0:12:07]} 13. Nf4 {[%emt 0:14:11]} Bd4+ {[%emt 0:05:23]} 14. Kh1 {[%emt 0:00:02]} Nf2+ {[%emt 0:02:48]} 15. Rxf2 {[%emt 0:00:02]} Bxf2 {[%emt 0:00:05]} 16. Nxe6 {[%emt 0:09:28]} fxe6 {[%emt 0:00:55]} 17. dxc4 {[%emt 0:00:02]} Ne5 {[%emt 0:01:18]} 18. Qf1 {[%emt 0:01:49]} Bb6 {[%emt 0:04:49]} 19. Qe2 {[%emt 0:01:17]} O-O {[%emt 0:04:14]} 20. Rf1 {[%emt 0:05:29]} Rxf1+ {[%emt 0:05:11]} 21. Bxf1 {[%emt 0:00:03]} Qf6 {[%emt 0:01:25]} 22. Bh3 {[%emt 0:05:23]} Rf8 {[%emt 0:05:37]} 23. Na4 {[%emt 0:04:41]} Qf2 {[%emt 0:05:39]} 24. Qe1 {[%emt 0:01:10]} Kh7 {[%emt 0:04:29]} 25. Nxb6 {[%emt 0:00:09]} Qxb6 {[%emt 0:00:05]} 26. Qe3 {[%emt 0:05:49]} Qxe3 {[%emt 0:00:42]} 27. Bxe3 {[%emt 0:00:01]} Nxc4 {[%emt 0:01:01]} 28. Bxa7 {[%emt 0:00:02]} Nxb2 {[%emt 0:00:35]} 29. Bxe6 {[%emt 0:00:59]} Na4 {[%emt 0:00:30]} 30. Bd4 {[%emt 0:02:30]} Nc5 {[%emt 0:00:28]} 31. Bd5 {[%emt 0:00:17]} Rf1+ {[%emt 0:00:25]} 32. Kg2 {[%emt 0:00:14]} Rc1 {[%emt 0:00:13]} 33. c3 {[%emt 0:01:20]} Na4 {[%emt 0:00:31]} 34. Bxb7 {[%emt 0:00:42]} Nxc3 {[%emt 0:00:08]} 35. Kf3 {[%emt 0:02:12]} Nb5 {[%emt 0:00:56]} 36. Be3 {[%emt 0:00:38]} Rc3 {[%emt 0:00:16]} 37. e5 {[%emt 0:01:32]} dxe5 {[%emt 0:00:26]} 38. Bd5 {[%emt 0:00:32]} Kg7 {[%emt 0:00:38]} 39. a4 {[%emt 0:00:28]} Nd6 {[%emt 0:00:31]} 40. Ke2 {[%emt 0:00:00]} Nf5 {[%emt 0:00:00]} 41. Bb6 {[%emt 0:01:32]} Nd4+ {[%emt 0:05:46]} 42. Kd2 {[%emt 0:02:07]} Ra3 {[%emt 0:11:32]} 43. a5 {[%emt 0:00:29]} Kf6 {[%emt 0:01:08]} 44. Kc1 {[%emt 0:18:04]} Ra4 {[%emt 0:00:46]} 45. Kb2 {[%emt 0:00:56]} Ke7 {[%emt 0:03:17]} 46. h4 {[%emt 0:07:04]} Kd6 {[%emt 0:01:21]} 47. Be4 {[%emt 0:02:41]} g5 {[%emt 0:02:53]} 48. hxg5 {[%emt 0:00:01]} hxg5 {[%emt 0:00:04]} 49. Bb7 {[%emt 0:01:13]} Nc6 {[%emt 0:01:36]} 50. Kb3 {[%emt 0:01:23]} Rxa5 {[%emt 0:00:50]} 51. Bxc6 {[%emt 0:00:32]} Ra6 {[%emt 0:00:13]} 52. Bd8 {[%emt 0:00:21]} Rxc6 {[%emt 0:00:04]} 53. Bxg5 {[%emt 0:00:03]} Kd5 {[%emt 0:00:14]} 54. Bd2 {[%emt 0:00:29]} Kd4 {[%emt 0:00:19]} 55. g4 {[%emt 0:00:49]} Kd3 {[%emt 0:00:09]} 56. Ba5 {[%emt 0:00:31]} Rg6 {[%emt 0:00:18]} 57. Bc3 {[%emt 0:00:47]} e4 {[%emt 0:00:05]} 0-1

[Event "35th European Club Cup 2019"]
[Site "Ulcinj"]
[Date "2019.11.12"]
[Round "3.18"]
[White "Salama, Omar"]
[Black "Piceu, Tom"]
[Result "0-1"]
[ECO "A57"]
[WhiteElo "2193"]
[BlackElo "2354"]
[Annotator "ChessBase"]
[PlyCount "41"]
[EventDate "2019.11.10"]
[EventType "team-tourn"]
[EventCountry "MNE"]
[SourceTitle "playchess.com"]
[Source "ChessBase"]
[SourceQuality "1"]
[WhiteTeam "Reykjavik CC"]
[BlackTeam "HWP Sas van Gent"]
[TimeControl "40/5400+30:1800+30"]

1. d4 Nf6 2. c4 c5 3. d5 b5 4. a4 Qa5+ 5. Bd2 b4 6. Qc2 d6 7. e4 g6 8. Be2 Bg7 9. Nf3 O-O 10. O-O Nbd7 11. h3 Bb7 12. Bf4 Qc7 13. Nbd2 Rae8 14. Rfe1 e5 15. dxe6 fxe6 16. Rad1 Nh5 17. Bh2 Nf4 18. Nf1 Ne5 19. Bxf4 Rxf4 20. Ng3 Ref8 21. Qd2 0-1

[Event "35th European Club Cup 2019"]
[Site "Ulcinj"]
[Date "2019.11.12"]
[Round "3.18"]
[White "Reichardt, Robin"]
[Black "Van Ketel, Raoul"]
[Result "1-0"]
[ECO "E15"]
[WhiteElo "1954"]
[BlackElo "2212"]
[Annotator "NA"]
[PlyCount "169"]
[EventDate "2019.11.10"]
[EventType "team-tourn"]
[EventCountry "MNE"]
[SourceTitle "playchess.com"]
[Source "ChessBase"]
[SourceQuality "1"]
[WhiteTeam "En Passant"]
[BlackTeam "LSG IntelliMagic"]
[TimeControl "40/5400+30:1800+30"]

1. d4 Nf6 2. Nf3 e6 3. c4 b6 4. g3 Ba6 5. Nbd2 Bc8 {[%emt 0:01:05]} 6. Nb1 {[%emt 0:02:47]} Ba6 {[%emt 0:00:09]} 7. Nbd2 {[%emt 0:00:33]} Bb7 {[%emt 0:08:01]} 8. Bg2 {[%emt 0:01:40]} Bb4 {[%emt 0:05:48]} 9. O-O {[%emt 0:02:33]} O-O {[%emt 0:00:40]} 10. Qc2 {[%emt 0:08:07]} Bxd2 {[%emt 0:06:39]} 11. Bxd2 {[%emt 0:02:38]} Be4 {[%emt 0:03:47]} 12. Qc3 {[%emt 0:04:26]} d6 {[%emt 0:00:25]} 13. Rfd1 {[%emt 0:07:44]} Nbd7 {[%emt 0:01:47]} 14. Bg5 {[%emt 0:04:50]} h6 {[%emt 0:19:39]} 15. Bf4 {[%emt 0:04:18]} a5 {[%emt 0:07:41]} 16. b3 {[%emt 0:18:19]} Qe7 {[%emt 0:00:53]} 17. Ne1 {[%emt 0:07:26]} Bxg2 {[%emt 0:08:50]} 18. Nxg2 {[%emt 0:00:12]} Ne4 {[%emt 0:00:12]} 19. Qd3 {[%emt 0:01:43]} f5 {[%emt 0:03:22]} 20. f3 {[%emt 0:04:39]} Nef6 {[%emt 0:00:05]} 21. e4 {[%emt 0:01:18]} fxe4 {[%emt 0:02:09]} 22. fxe4 {[%emt 0:00:13]} e5 {[%emt 0:00:22]} 23. dxe5 {[%emt 0:02:55]} dxe5 {[%emt 0:00:03]} 24. Be3 {[%emt 0:03:15]} Rad8 {[%emt 0:10:07]} 25. Qc2 {[%emt 0:02:40]} Qe6 {[%emt 0:05:32]} 26. Bf2 {[%emt 0:07:56]} Qh3 {[%emt 0:04:07]} 27. Ne3 {[%emt 0:07:13]} Rf7 {[%emt 0:01:50]} 28. Kh1 {[%emt 0:03:42]} Nh5 {[%emt 0:02:27]} 29. Qe2 {[%emt 0:01:54]} Nhf6 {[%emt 0:04:13]} 30. Nf5 {[%emt 0:01:15]} Rdf8 {[%emt 0:01:01]} 31. Bg1 {[%emt 0:00:28]} Nb8 {[%emt 0:03:02]} 32. Nh4 {[%emt 0:00:36]} Nc6 {[%emt 0:00:59]} 33. Rd2 {[%emt 0:00:28]} Kh7 {[%emt 0:00:38]} 34. Rad1 {[%emt 0:00:23]} g5 {[%emt 0:00:53]} 35. Nf5 {[%emt 0:00:27]} Nxe4 {[%emt 0:00:03]} 36. Qxe4 {[%emt 0:00:11]} Qxf5 {[%emt 0:00:02]} 37. Qxc6 {[%emt 0:00:14]} e4 {[%emt 0:00:11]} 38. Rf2 {[%emt 0:00:22]} Qg4 {[%emt 0:00:40]} 39. Rdf1 {[%emt 0:01:28]} Rxf2 {[%emt 0:00:42]} 40. Bxf2 {[%emt 0:00:27]} Rf7 {[%emt 0:00:50]} 41. Kg1 {[%emt 0:30:17]} Qf3 {[%emt 0:30:59]} 42. Qe6 {[%emt 0:00:00]} Rf6 {[%emt 0:00:00]} 43. Qe5 {[%emt 0:00:00]} Rf7 {[%emt 0:00:00]} 44. Qd4 {[%emt 0:00:00]} Qf5 {[%emt 0:00:00]} 45. Re1 {[%emt 0:00:00]} Re7 {[%emt 0:00:00]} 46. Qd5 {[%emt 0:00:00]} Kg6 {[%emt 0:00:00]} 47. Qxf5+ {[%emt 0:00:00]} Kxf5 {[%emt 0:00:00]} 48. Be3 {[%emt 0:00:00]} Rd7 {[%emt 0:00:00]} 49. Kf2 {[%emt 0:00:00]} Rd3 {[%emt 0:00:00]} 50. h3 {[%emt 0:00:00]} c5 {[%emt 0:00:00]} 51. Ke2 {[%emt 0:00:00]} a4 {[%emt 0:00:00]} 52. Rb1 {[%emt 0:00:00]} Rc3 {[%emt 0:00:00]} 53. g4+ {[%emt 0:01:11]} Ke5 {[%emt 0:00:00]} 54. Rb2 {[%emt 0:00:52]} Kd6 {[%emt 0:00:00]} 55. Kd2 {[%emt 0:02:30]} Rd3+ {[%emt 0:00:00]} 56. Ke2 {[%emt 0:00:03]} Rc3 {[%emt 0:00:00]} 57. bxa4 {[%emt 0:03:34]} Kc6 {[%emt 0:00:00]} 58. a5 {[%emt 0:00:21]} bxa5 {[%emt 0:00:00]} 59. Rb5 {[%emt 0:00:21]} Rc2+ {[%emt 0:00:29]} 60. Bd2 {[%emt 0:00:11]} a4 {[%emt 0:02:10]} 61. Ra5 {[%emt 0:01:14]} Rxc4 {[%emt 0:00:03]} 62. Ke3 {[%emt 0:00:32]} Rd4 {[%emt 0:02:18]} 63. Ra6+ {[%emt 0:00:23]} Kd5 {[%emt 0:00:01]} 64. Rxh6 {[%emt 0:00:28]} Rd3+ {[%emt 0:01:11]} 65. Ke2 {[%emt 0:00:06]} Ra3 {[%emt 0:00:06]} 66. Bxg5 {[%emt 0:00:49]} Rxa2+ {[%emt 0:00:02]} 67. Bd2 {[%emt 0:00:25]} a3 {[%emt 0:01:29]} 68. g5 {[%emt 0:00:33]} c4 {[%emt 0:00:51]} 69. Ke3 {[%emt 0:00:26]} Rb2 {[%emt 0:02:45]} 70. h4 {[%emt 0:00:46]} Rb3+ {[%emt 0:00:22]} 71. Ke2 {[%emt 0:00:07]} c3 {[%emt 0:00:12]} 72. Ra6 {[%emt 0:00:58]} Rb2 73. Rxa3 {[%emt 0:00:11]} Rxd2+ {[%emt 0:02:21]} 74. Ke3 {[%emt 0:00:39]} Rd3+ {[%emt 0:00:04]} 75. Ke2 {[%emt 0:00:07]} Rg3 {[%emt 0:01:39]} 76. Kf2 {[%emt 0:01:02]} c2 {[%emt 0:01:12]} 77. Ra1 {[%emt 0:00:14]} Rf3+ {[%emt 0:00:03]} 78. Ke2 {[%emt 0:00:16]} Kc4 {[%emt 0:00:10]} 79. g6 {[%emt 0:00:33]} Rg3 {[%emt 0:00:11]} 80. h5 {[%emt 0:00:21]} Rg5 {[%emt 0:01:03]} 81. Rh1 {[%emt 0:00:38]} Rxh5 {[%emt 0:00:15]} 82. Rc1 {[%emt 0:00:48]} Kc3 {[%emt 0:00:54]} 83. Rg1 {[%emt 0:00:35]} Rg5 {[%emt 0:00:21]} 84. Rxg5 {[%emt 0:00:06]} c1=Q {[%emt 0:00:06]} 85. Rc5+ {[%emt 0:00:04]} 1-0

[Event "35th European Club Cup 2019"]
[Site "Ulcinj"]
[Date "2019.11.12"]
[Round "3.19"]
[White "Chigaev, Maksim"]
[Black "Ivanisevic, Ivan"]
[Result "1-0"]
[ECO "B40"]
[WhiteElo "2623"]
[BlackElo "2598"]
[Annotator "ChessBase"]
[PlyCount "115"]
[EventDate "2019.11.10"]
[EventType "team-tourn"]
[EventCountry "MNE"]
[SourceTitle "playchess.com"]
[Source "ChessBase"]
[SourceQuality "1"]
[WhiteTeam "Molodezka"]
[BlackTeam "Sloven Ruma"]
[TimeControl "40/5400+30:1800+30"]

1. e4 {[%emt 0:00:00]} c5 {[%emt 0:00:00]} 2. Nf3 {[%emt 0:00:00]} e6 {[%emt 0:00:00]} 3. g3 {[%emt 0:00:00]} Nc6 {[%emt 0:00:14]} 4. Bg2 {[%emt 0:00:00]} h5 {[%emt 0:00:21]} 5. h3 {[%emt 0:00:11]} d5 {[%emt 0:02:33]} 6. exd5 {[%emt 0:00:20]} exd5 {[%emt 0:00:04]} 7. d4 {[%emt 0:01:14]} h4 {[%emt 0:02:59]} 8. g4 {[%emt 0:01:18]} Nf6 {[%emt 0:07:32]} 9. Nc3 {[%emt 0:06:12]} cxd4 {[%emt 0:09:07]} 10. Nxd4 {[%emt 0:00:09]} Bc5 {[%emt 0:00:34]} 11. Nb3 {[%emt 0:06:47]} Qe7+ {[%emt 0:09:57]} 12. Qe2 {[%emt 0:00:28]} Qxe2+ {[%emt 0:00:04]} 13. Kxe2 {[%emt 0:08:08]} Bb6 {[%emt 0:00:06]} 14. g5 {[%emt 0:02:16]} d4 {[%emt 0:01:47]} 15. Nb5 {[%emt 0:02:33]} Nh5 {[%emt 0:01:02]} 16. Nd6+ {[%emt 0:07:32]} Ke7 {[%emt 0:00:30]} 17. Nxc8+ {[%emt 0:00:34]} Raxc8 {[%emt 0:01:42]} 18. Bd2 {[%emt 0:00:37]} Rhd8 {[%emt 0:07:15]} 19. Rhe1 {[%emt 0:02:56]} Kf8 {[%emt 0:00:47]} 20. Bf3 {[%emt 0:10:25]} g6 {[%emt 0:00:32]} 21. Bxh5 {[%emt 0:00:10]} gxh5 {[%emt 0:00:12]} 22. Kd3 {[%emt 0:00:08]} Rd5 {[%emt 0:04:54]} 23. f4 {[%emt 0:00:18]} a5 {[%emt 0:05:33]} 24. a4 {[%emt 0:04:37]} Ne7 {[%emt 0:01:46]} 25. Re5 {[%emt 0:03:52]} Rxe5 {[%emt 0:01:13]} 26. fxe5 {[%emt 0:00:14]} Nc6 {[%emt 0:00:03]} 27. Re1 {[%emt 0:00:19]} Re8 {[%emt 0:00:49]} 28. Kc4 {[%emt 0:00:23]} Bc7 {[%emt 0:03:19]} 29. Nxd4 {[%emt 0:07:59]} Nxe5+ {[%emt 0:03:43]} 30. Kb3 {[%emt 0:00:52]} Bb6 {[%emt 0:05:06]} 31. c3 {[%emt 0:06:55]} Nd3 {[%emt 0:04:17]} 32. Rf1 {[%emt 0:00:46]} Nc5+ {[%emt 0:07:35]} 33. Kc2 {[%emt 0:00:42]} Ne4 {[%emt 0:12:22]} 34. g6 {[%emt 0:00:56]} f6 {[%emt 0:00:08]} 35. Bh6+ {[%emt 0:03:55]} Kg8 {[%emt 0:00:05]} 36. Rf5 {[%emt 0:02:50]} Re5 {[%emt 0:02:48]} 37. Rxe5 {[%emt 0:04:13]} fxe5 {[%emt 0:00:04]} 38. Nf5 {[%emt 0:01:34]} Bd8 {[%emt 0:00:22]} 39. Be3 {[%emt 0:00:29]} Bc7 {[%emt 0:03:23]} 40. Kd3 {[%emt 0:00:00]} Ng3 {[%emt 0:00:00]} 41. Nxh4 {[%emt 0:06:21]} Bd8 {[%emt 0:04:43]} 42. Ng2 {[%emt 0:00:06]} Kg7 {[%emt 0:00:08]} 43. Bf2 {[%emt 0:00:19]} e4+ {[%emt 0:07:44]} 44. Kc4 {[%emt 0:00:50]} Nh1 {[%emt 0:01:47]} 45. Bh4 {[%emt 0:01:02]} Bxh4 {[%emt 0:00:52]} 46. Nxh4 {[%emt 0:00:05]} Nf2 {[%emt 0:00:03]} 47. Kd4 {[%emt 0:00:27]} Nxh3 {[%emt 0:00:53]} 48. Kxe4 {[%emt 0:00:12]} Kf6 {[%emt 0:00:03]} 49. b4 {[%emt 0:01:16]} Nf2+ {[%emt 0:02:46]} 50. Kd4 {[%emt 0:02:27]} b6 {[%emt 0:12:38]} 51. bxa5 {[%emt 0:03:44]} bxa5 {[%emt 0:00:04]} 52. c4 {[%emt 0:00:04]} Nd1 {[%emt 0:04:43]} 53. c5 {[%emt 0:00:22]} Nb2 {[%emt 0:00:14]} 54. c6 {[%emt 0:00:12]} Nxa4 {[%emt 0:00:05]} 55. c7 {[%emt 0:00:10]} Nb6 {[%emt 0:00:06]} 56. Kc5 {[%emt 0:00:04]} Nc8 {[%emt 0:02:08]} 57. Kb5 {[%emt 0:00:09]} Ke6 {[%emt 0:01:32]} 58. Kxa5 {[%emt 0:00:12]} 1-0